bitfinex-derivatives/quotes_BTCF0:USTF0_20210102
["timestamp","ask_amount","ask_price","bid_price","bid_amount"]
[1609590367223,0.00040299,30329.0,30315.0,1.0]
[1609590367423,0.00040299,30329.0,30320.0,0.18043158]
[1609590367624,0.92859885,30330.0,30320.0,0.18043158]
[1609590367824,1.0,30322.0,30320.0,0.18043158]
[1609590368023,1.1502,30322.0,30320.0,0.18043158]
[1609590368223,0.00040305,30321.0,30320.0,0.18043158]
[1609590369727,6e-08,30321.0,30320.0,0.18043158]
[1609590370128,0.1502,30322.0,30294.0,0.19519547]
[1609590370328,0.12916,30330.0,30325.0,0.25173807]
[1609590370727,0.1275532,30330.0,30325.0,0.25173807]
[1609590371430,0.18043158,30326.0,30325.0,0.25173807]
[1609590371630,0.1275532,30330.0,30325.0,0.25173807]
[1609590371833,1.0,30326.0,30325.0,0.25173807]
[1609590372230,1.00040309,30326.0,30304.0,1.0]
[1609590372831,1.00040309,30326.0,30294.0,0.04222547]
[1609590372832,0.00040317,30325.0,30294.0,0.04222547]
[1609590373230,1.0,30322.0,30307.0,1.0]
[1609590373431,1.11346,30322.0,30315.0,0.18043158]
[1609590373633,0.0004032,30321.0,30315.0,0.18043158]
[1609590373932,0.0004032,30321.0,30307.0,1.0]
[1609590374334,1.11346,30322.0,30307.0,1.0]
[1609590375234,0.11346,30322.0,30294.0,0.04222547]
[1609590375435,0.11346,30322.0,30321.0,0.18043158]
[1609590375635,0.11346,30322.0,30294.0,0.04222547]
[1609590376235,0.1275532,30330.0,30294.0,0.04222547]
[1609590376435,1.0,30349.0,30294.0,0.04222547]
[1609590376734,0.00040318,30342.0,30294.0,0.04222547]
[1609590377136,1.0,30327.0,30312.0,1.0]
[1609590377535,1.0,30327.0,30321.0,0.18043158]
[1609590379439,0.18043158,30322.0,30321.0,0.18043158]
[1609590379639,0.31823158,30322.0,30321.0,0.18043158]
[1609590380038,0.1378,30322.0,30321.0,0.18043158]
[1609590381140,0.1378,30322.0,30321.0,1.18043158]
[1609590382640,1.0,30337.0,30321.0,1.18043158]
[1609590382841,0.13334,30322.0,30321.0,1.18043158]
[1609590383241,0.13334,30322.0,30321.0,0.18043158]
[1609590383441,0.12767,30326.0,30321.0,1.18043158]
[1609590384543,0.10705,30342.0,30321.0,1.18043158]
[1609590384743,1.0,30350.0,30321.0,1.18043158]
[1609590384944,1.0,30350.0,30322.0,0.00041243]
[1609590385246,0.30372158,30352.0,30322.0,0.00041243]
[1609590385445,0.30372158,30352.0,30350.0,0.18043158]
[1609590386047,0.12329,30352.0,30350.0,0.18043158]
[1609590389149,0.12329,30352.0,30350.0,1.18043158]
[1609590389350,0.12329,30352.0,30350.0,2.18043158]
[1609590390251,0.12329,30352.0,30350.0,2.0]
[1609590390451,0.12329,30352.0,30350.0,1.0]
[1609590390652,0.12329,30352.0,30350.0,2.0]
[1609590391052,0.12329,30352.0,30350.0,1.0]
[1609590391253,0.29649211,30351.0,30350.0,1.0]
[1609590391452,0.29649211,30351.0,30350.0,1.18043158]
[1609590392255,0.29649211,30351.0,30350.0,2.18043158]
[1609590393053,0.29649211,30351.0,30350.0,1.18043158]
[1609590395256,0.09571532,30351.0,30350.0,1.18043158]
[1609590395756,0.09571532,30351.0,30350.0,2.18043158]
[1609590397160,0.09571532,30351.0,30350.0,7.18043158]
[1609590398863,0.13544,30359.0,30350.0,7.18043158]
[1609590399263,0.13544,30359.0,30350.0,1.18043158]
[1609590399663,0.13544,30359.0,30358.0,0.18043158]
[1609590399864,0.13544,30359.0,30358.0,1.18043158]
[1609590400462,0.18043158,30382.0,30358.0,1.18043158]
[1609590400663,0.04161785,30391.0,30358.0,1.18043158]
[1609590401263,0.00040254,30390.0,30358.0,1.18043158]
[1609590401464,0.16497254,30390.0,30358.0,1.18043158]
[1609590401663,0.16497254,30390.0,30389.0,0.18043158]
[1609590401863,0.16457,30390.0,30389.0,0.18043158]
[1609590402366,0.16497252,30390.0,30389.0,0.18043158]
[1609590402764,0.16497252,30390.0,30362.0,1.0]
[1609590403164,0.00040254,30389.0,30362.0,1.0]
[1609590403365,1.0,30384.0,30368.0,1.0]
[1609590403565,1.0,30384.0,30381.0,0.18043158]
[1609590403966,1.0,30384.0,30368.0,1.0]
[1609590404166,0.00040256,30383.0,30368.0,1.0]
[1609590404366,0.12115,30383.0,30368.0,1.0]
[1609590404968,0.12115,30383.0,30369.0,1.0]
[1609590405568,0.12115,30383.0,30382.0,0.18043158]
[1609590409377,0.16457,30390.0,30382.0,0.18043158]
[1609590409577,0.04161785,30391.0,30389.0,0.18043158]
[1609590409978,0.00040241,30390.0,30377.0,1.0]
[1609590410380,0.12530241,30390.0,30377.0,1.0]
[1609590410682,0.12329626,30390.0,30377.0,1.0]
[1609590410980,0.00040241,30389.0,30377.0,1.0]
[1609590411179,0.00040241,30389.0,30368.0,1.0]
[1609590411379,0.00040241,30389.0,30350.0,1.60790077]
[1609590411380,0.00040241,30389.0,30363.0,1.0]
[1609590411580,0.18043158,30381.0,30380.0,0.18043158]
[1609590411780,0.29092158,30381.0,30350.0,1.60790077]
[1609590411980,0.29092158,30381.0,30354.0,1.16044]
[1609590412883,0.00040246,30380.0,30354.0,1.16044]
[1609590413182,0.29092158,30381.0,30354.0,1.16044]
[1609590413581,0.11049,30381.0,30377.0,0.18043158]
[1609590413981,0.00040246,30380.0,30377.0,0.18043158]
[1609590414882,0.11049,30381.0,30377.0,0.18043158]
[1609590415985,0.11049,30381.0,30377.0,1.18043158]
[1609590416886,0.30372784,30390.0,30377.0,1.18043158]
[1609590417484,0.0004024,30389.0,30377.0,1.18043158]
[1609590417687,0.0004024,30389.0,30386.0,0.18043158]
[1609590419686,0.18083398,30389.0,30386.0,0.18043158]
[1609590419887,0.00040237,30388.0,30386.0,0.18043158]
[1609590420487,0.12329626,30390.0,30386.0,0.18043158]
[1609590420488,0.00040237,30389.0,30386.0,1.18043158]
[1609590421188,0.00040237,30389.0,30388.0,1.0]
[1609590421389,0.00040237,30389.0,30388.0,2.0]
[1609590422390,0.12329626,30390.0,30388.0,2.0]
[1609590422589,0.04161785,30391.0,30388.0,2.0]
[1609590422788,0.00040226,30390.0,30388.0,2.0]
[1609590423187,0.00040226,30390.0,30389.0,1.0]
[1609590423389,0.00040226,30390.0,30389.0,2.0]
[1609590424389,0.04161785,30391.0,30389.0,2.0]
[1609590425191,0.04161785,30391.0,30389.0,1.0]
[1609590425391,0.04161785,30391.0,30390.0,1.0]
[1609590425592,0.04161785,30391.0,30390.0,1.18043158]
[1609590425791,0.04202006,30391.0,30390.0,1.18043158]
[1609590426593,0.04202006,30391.0,30390.0,0.18043158]
[1609590426996,0.04001487,30391.0,30390.0,0.18043158]
[1609590427797,0.04001487,30391.0,30382.0,0.04222547]
[1609590428195,0.00040224,30390.0,30382.0,0.04222547]
[1609590429396,0.00040224,30390.0,30386.0,1.0]
[1609590429595,0.00040224,30390.0,30386.0,2.0]
[1609590429795,0.00040224,30390.0,30389.0,0.18043158]
[1609590432098,0.12431,30395.0,30389.0,0.18043158]
[1609590432497,0.00040217,30394.0,30390.0,1.0]
[1609590433497,0.00040217,30394.0,30389.0,0.18043158]
[1609590433699,0.00040217,30394.0,30393.0,0.18043158]
[1609590436900,0.00040217,30394.0,30388.0,6.0]
[1609590437101,0.1227072,30395.0,30388.0,6.0]
[1609590437300,1.0,30394.0,30388.0,6.0]
[1609590437700,1.0,30394.0,30393.0,0.18043158]
[1609590437901,1.0,30394.0,30388.0,6.0]
[1609590438101,1.00040222,30394.0,30388.0,6.0]
[1609590438500,0.00040226,30393.0,30388.0,6.0]
[1609590439701,0.18043158,30389.0,30388.0,6.0]
[1609590440102,0.18083396,30389.0,30388.0,6.0]
[1609590441208,6.18083396,30389.0,30388.0,6.0]
[1609590442307,7.18083396,30389.0,30388.0,1.67926]
[1609590442508,6.18083396,30389.0,30388.0,1.67926]
[1609590442709,6.18083396,30389.0,30388.0,0.61116]
[1609590442909,6.18083396,30389.0,30382.0,0.04222547]
[1609590443111,1.0,30388.0,30358.0,1.0]
[1609590443314,1.00040257,30388.0,30350.0,1.60822712]
[1609590443712,0.00040259,30387.0,30361.0,0.18043158]
[1609590443915,0.15608259,30387.0,30351.0,0.00041624]
[1609590444112,1.15608259,30387.0,30349.0,0.00041627]
[1609590444512,0.00040262,30386.0,30352.0,0.00041627]
[1609590444712,0.00040262,30386.0,30350.0,0.00041627]
[1609590444913,0.00040262,30386.0,30339.0,1.93870339]
[1609590444914,0.00040262,30386.0,30353.0,0.0004163]
[1609590445112,0.00040262,30386.0,30336.0,0.76799649]
[1609590445516,4.0695,30384.0,30337.0,0.00041627]
[1609590445713,0.00040262,30386.0,30366.0,0.18043158]
[1609590445914,1.00040262,30386.0,30343.0,0.1225]
[1609590446315,0.00040262,30385.0,30344.0,0.00041622]
[1609590447718,0.00040262,30385.0,30358.0,0.18043158]
[1609590448117,0.00040262,30385.0,30343.0,0.1225]
[1609590448519,0.00040262,30385.0,30345.0,0.00041629]
[1609590448719,0.00040262,30385.0,30344.0,0.00041629]
[1609590448919,0.00040262,30385.0,30346.0,0.00041629]
[1609590449319,0.00040262,30385.0,30344.0,0.00041629]
[1609590449521,0.00040262,30385.0,30347.0,0.00041632]
[1609590449522,0.01008399,30382.0,30347.0,0.00041632]
[1609590449720,0.18043158,30348.0,30345.0,0.00041632]
[1609590450120,0.18043158,30348.0,30326.0,1.80158082]
[1609590450331,0.18043158,30348.0,30205.0,0.4]
[1609590450332,0.18043158,30348.0,30346.0,0.00041636]
[1609590450519,0.18043158,30348.0,30338.0,0.17002]
[1609590450920,0.18043158,30348.0,30339.0,0.00041633]
[1609590451722,0.14123,30353.0,30345.0,0.18043158]
[1609590452121,0.14123,30353.0,30346.0,0.00041631]
[1609590452921,0.13922216,30353.0,30346.0,0.00041631]
[1609590453321,0.13922216,30353.0,30339.0,0.00041631]
[1609590453521,0.13922216,30353.0,30347.0,0.00041634]
[1609590453723,0.18043158,30348.0,30341.0,0.18043158]
[1609590454122,0.18043158,30348.0,30326.0,0.1408]
[1609590455326,1.0,30345.0,30329.0,1.0]
[1609590455525,1.0,30345.0,30329.0,2.0]
[1609590455725,1.0,30345.0,30344.0,0.18043158]
[1609590456126,0.3396,30345.0,30344.0,0.18043158]
[1609590456326,0.13922216,30353.0,30344.0,0.18043158]
[1609590456327,0.13922216,30353.0,30344.0,1.18043158]
[1609590456526,0.16836,30394.0,30344.0,1.18043158]
[1609590456726,5.07178206,30388.0,30344.0,1.18043158]
[1609590457127,0.01008335,30376.0,30344.0,1.18043158]
[1609590457726,0.01008335,30376.0,30375.0,0.18043158]
[1609590458737,0.01007411,30385.0,30375.0,0.18043158]
[1609590459135,0.01007411,30385.0,30376.0,1.0]
[1609590459734,0.01007411,30385.0,30384.0,0.18043158]
[1609590460139,0.18043158,30389.0,30384.0,0.18043158]
[1609590460533,0.01007484,30404.0,30384.0,0.18043158]
[1609590461540,0.0100755,30409.0,30384.0,1.18043158]
[1609590461730,0.0100755,30409.0,30396.0,0.18043158]
[1609590462531,0.01007366,30411.0,30396.0,0.18043158]
[1609590463731,0.18043158,30397.0,30396.0,0.18043158]
[1609590463931,0.28639158,30397.0,30380.0,1.0]
[1609590465835,0.10596,30397.0,30391.0,0.18043158]
[1609590467337,0.10395469,30397.0,30391.0,0.18043158]
[1609590467736,0.18043158,30392.0,30391.0,0.18043158]
[1609590467937,0.18043158,30392.0,30380.0,1.0]
[1609590469939,0.18043158,30392.0,30391.0,0.18043158]
[1609590470941,0.10395469,30397.0,30391.0,0.18043158]
[1609590471241,1.0,30400.0,30391.0,0.18043158]
[1609590471442,1.0,30400.0,30385.0,1.0]
[1609590471843,1.0,30400.0,30384.0,1.0]
[1609590472257,1.6319,30400.0,30384.0,1.0]
[1609590472445,0.6319,30400.0,30359.0,1.62589028]
[1609590472645,0.73751,30400.0,30359.0,1.62589028]
[1609590472846,0.00040245,30399.0,30360.0,1.0]
[1609590473248,0.00040245,30399.0,30360.0,1.00041605]
[1609590473458,0.00040245,30399.0,30361.0,0.00041605]
[1609590473650,0.00040245,30399.0,30361.0,1.00041605]
[1609590473853,0.00040245,30399.0,30379.0,0.18043158]
[1609590475054,0.00040245,30399.0,30380.0,1.0]
[1609590475648,0.73751,30400.0,30380.0,1.0]
[1609590475848,0.00040236,30398.0,30386.0,0.18043158]
[1609590476250,0.00040236,30399.0,30386.0,0.18043158]
[1609590476452,0.00040236,30399.0,30381.0,1.0]
[1609590476453,0.10561,30400.0,30381.0,1.0]
[1609590477051,0.00040235,30399.0,30381.0,1.0]
[1609590477254,0.10561,30400.0,30382.0,1.0]
[1609590477851,0.46373158,30402.0,30399.0,0.18043158]
[1609590478451,0.46373158,30402.0,30395.0,1.0]
[1609590478652,0.58625158,30402.0,30395.0,1.0]
[1609590478852,0.00040231,30401.0,30395.0,1.0]
[1609590479854,0.18043158,30396.0,30395.0,1.0]
[1609590480255,0.18083394,30396.0,30395.0,1.0]
[1609590480455,0.27923394,30396.0,30378.0,1.0]
[1609590480655,0.18013394,30396.0,30378.0,1.0]
[1609590481058,0.00040238,30395.0,30378.0,1.0]
[1609590481256,0.00040238,30395.0,30379.0,1.0]
[1609590481860,0.00040238,30395.0,30381.0,0.18043158]
[1609590482057,0.00040238,30395.0,30379.0,1.0]
[1609590482258,0.16909238,30395.0,30379.0,1.0]
[1609590482459,1.0,30392.0,30379.0,1.0]
[1609590483059,0.00040242,30391.0,30379.0,1.0]
[1609590483659,0.00040242,30391.0,30377.0,1.0]
[1609590483860,0.00040242,30391.0,30383.0,0.18043158]
[1609590484061,0.00040242,30391.0,30377.0,1.0]
[1609590484462,0.00040242,30391.0,30364.0,0.10964]
[1609590484662,0.0974,30393.0,30358.0,1.0]
[1609590485060,0.0974,30393.0,30328.0,3.21732471]
[1609590485061,0.00040247,30390.0,30359.0,1.0]
[1609590485263,0.00040249,30392.0,30360.0,0.00041605]
[1609590485461,0.16869,30395.0,30360.0,0.00041605]
[1609590485462,0.00040249,30389.0,30360.0,0.00041605]
[1609590485861,0.18043158,30361.0,30360.0,0.00041605]
[1609590486061,0.29636158,30361.0,30354.0,0.00041608]
[1609590486262,0.29636158,30361.0,30360.0,0.00041612]
[1609590486663,0.29636158,30361.0,30355.0,0.00041612]
[1609590486865,0.29636158,30361.0,30360.0,0.00041614]
[1609590487064,0.29636158,30361.0,30356.0,0.00041614]
[1609590487464,0.29636158,30361.0,30353.0,1.6384631]
[1609590487664,0.29636158,30361.0,30357.0,0.00041618]
[1609590487867,0.29636158,30361.0,30354.0,0.00041618]
[1609590488266,0.29636158,30361.0,30358.0,0.00041623]
[1609590488467,0.00040267,30360.0,30355.0,0.00041623]
[1609590488667,0.00040267,30360.0,30353.0,1.6384631]
[1609590489869,0.18043158,30354.0,30343.0,1.64760603]
[1609590490068,0.34342158,30354.0,30343.0,1.64760603]
[1609590490270,0.34342158,30354.0,30344.0,0.00041633]
[1609590490271,0.00040275,30353.0,30344.0,0.00041633]
[1609590490869,0.00040275,30353.0,30325.0,0.00041636]
[1609590491069,0.00040275,30353.0,30325.0,1.0]
[1609590491470,0.00040275,30353.0,30326.0,0.00041637]
[1609590491869,0.00040275,30353.0,30335.0,0.18043158]
[1609590492069,0.00040275,30353.0,30336.0,1.0]
[1609590492469,0.00040275,30353.0,30337.0,0.00041633]
[1609590493072,0.16299,30354.0,30337.0,0.00041633]
[1609590493873,0.18043158,30343.0,30342.0,0.18043158]
[1609590494471,0.16299,30354.0,30342.0,0.18043158]
[1609590494771,0.16299,30354.0,30335.0,1.0]
[1609590494971,0.16299,30354.0,30333.0,0.16156]
[1609590495172,0.13154,30354.0,30333.0,0.16156]
[1609590495573,0.13154,30354.0,30334.0,0.00041636]
[1609590495772,0.13154,30354.0,30334.0,1.00041636]
[1609590495973,0.17842367,30347.0,30344.0,0.18043158]
[1609590496372,0.17842367,30347.0,30345.0,1.0]
[1609590496572,0.13154,30354.0,30345.0,1.0]
[1609590496972,0.13154,30354.0,30346.0,1.0]
[1609590497975,1.2805,30360.0,30353.0,0.18043158]
[1609590498175,1.2805,30360.0,30354.0,1.0]
[1609590498373,0.2805,30360.0,30354.0,1.0]
[1609590498975,0.2805,30360.0,30353.0,1.0]
[1609590499977,0.18043158,30354.0,30353.0,1.0]
[1609590500377,0.18043158,30354.0,30341.0,1.15039]
[1609590501077,0.18043158,30354.0,30341.0,0.15039]
[1609590501677,0.2805,30360.0,30341.0,0.15039]
[1609590502078,0.18043158,30342.0,30341.0,0.15039]
[1609590502577,0.18043158,30342.0,30340.0,0.18043158]
[1609590503278,0.18043158,30342.0,30339.0,2.0]
[1609590503279,0.18043158,30342.0,30339.0,1.0]
[1609590504480,0.18043158,30342.0,30331.0,1.0]
[1609590504880,0.18043158,30342.0,30330.0,1.18043158]
[1609590505881,0.18043158,30342.0,30330.0,0.18043158]
[1609590506182,0.16603,30348.0,30334.0,0.18043158]
[1609590506582,0.16603,30348.0,30326.0,1.12299]
[1609590507083,0.16402167,30348.0,30327.0,0.00041611]
[1609590508186,0.16402167,30348.0,30331.0,0.18043158]
[1609590508585,3.9595,30357.0,30331.0,0.18043158]
[1609590508787,3.9595,30357.0,30332.0,0.00041611]
[1609590509187,0.00040282,30356.0,30332.0,0.00041611]
[1609590509789,0.00040282,30356.0,30326.0,0.12299]
[1609590509989,0.00040282,30356.0,30318.0,1.0]
[1609590510187,0.18043158,30323.0,30320.0,0.18043158]
[1609590510388,0.18043158,30323.0,30321.0,1.0]
[1609590510591,0.18043158,30323.0,30321.0,1.00041615]
[1609590510788,0.18043158,30323.0,30322.0,0.00041615]
[1609590510988,4.7795,30337.0,30322.0,0.00041615]
[1609590512289,0.18043158,30323.0,30321.0,1.14599]
[1609590513090,0.18043158,30323.0,30322.0,0.00041617]
[1609590514091,4.7795,30337.0,30322.0,0.00041617]
[1609590514291,4.7795,30337.0,30333.0,0.18043158]
[1609590514497,4.7795,30337.0,30322.0,1.00041617]
[1609590514895,0.000403,30336.0,30322.0,1.0]
[1609590516196,0.18043158,30323.0,30322.0,1.0]
[1609590516393,1.18043158,30323.0,30306.0,0.40201566]
[1609590516594,1.18043158,30323.0,30304.0,1.0]
[1609590516595,6.40822158,30323.0,30304.0,1.0]
[1609590516794,0.00040317,30322.0,30304.0,1.0]
[1609590518197,0.18043158,30305.0,30304.0,1.0]
[1609590518397,0.18043158,30305.0,30303.0,1.0]
[1609590520298,0.18043158,30305.0,30288.0,1.18043158]
[1609590520498,0.18043158,30305.0,30300.0,1.0]
[1609590521499,3.7538,30302.0,30300.0,1.0]
[1609590522201,0.18043158,30301.0,30300.0,1.0]
[1609590522402,0.18043158,30301.0,30290.0,1.0]
[1609590522601,0.18043158,30301.0,30290.0,2.0]
[1609590523201,0.18043158,30301.0,30290.0,1.0]
[1609590524003,0.1002,30300.0,30290.0,1.0]
[1609590524203,0.18043158,30301.0,30290.0,1.0]
[1609590524404,0.18043158,30295.0,30294.0,0.19485547]
[1609590525206,0.28003158,30295.0,30294.0,1.19485547]
[1609590525607,0.0996,30295.0,30294.0,1.19485547]
[1609590525808,0.0996,30295.0,30294.0,0.19485547]
[1609590526207,0.16569,30310.0,30294.0,0.19485547]
[1609590526407,0.18043158,30295.0,30294.0,0.19485547]
[1609590527207,0.27963158,30295.0,30294.0,0.19485547]
[1609590528208,0.18043158,30295.0,30294.0,0.19485547]
[1609590528608,0.18043158,30295.0,30294.0,0.04222547]
[1609590530213,0.28033158,30295.0,30294.0,0.04222547]
[1609590530912,0.18043158,30295.0,30294.0,0.04222547]
[1609590532012,0.27803158,30295.0,30294.0,0.04222547]
[1609590532413,0.18043158,30295.0,30294.0,1.04222547]
[1609590533316,0.27963158,30295.0,30294.0,1.04222547]
[1609590533516,4.13783158,30295.0,30294.0,1.04222547]
[1609590534418,4.13783158,30295.0,30294.0,0.04222547]
[1609590534818,4.13783158,30295.0,30288.0,1.0]
[1609590535219,4.13581955,30295.0,30288.0,1.0]
[1609590536421,0.18043158,30289.0,30281.0,0.15544]
[1609590536820,0.33309158,30289.0,30274.0,1.0]
[1609590537021,0.33309158,30289.0,30269.0,1.0]
[1609590537488,0.33309158,30289.0,30268.0,0.18043158]
[1609590537822,4.5302,30287.0,30268.0,0.18043158]
[1609590538423,0.18043158,30270.0,30268.0,0.18043158]
[1609590539223,0.18043158,30270.0,30239.0,1.0]
[1609590540326,0.18043158,30261.0,30259.0,0.18043158]
[1609590540726,4.3585,30282.0,30259.0,0.18043158]
[1609590540926,4.3585,30282.0,30259.0,0.31797158]
[1609590541126,4.3585,30282.0,30259.0,1.31797158]
[1609590542328,4.3585,30282.0,30271.0,0.18043158]
[1609590542527,0.15266,30289.0,30271.0,1.18043158]
[1609590542733,0.11556,30300.0,30271.0,1.32107158]
[1609590542942,4.5102,30305.0,30271.0,1.32107158]
[1609590543140,0.00040357,30288.0,30271.0,1.32107158]
[1609590543328,0.143,30293.0,30271.0,1.32107158]
[1609590543930,0.00040349,30292.0,30271.0,1.32107158]
[1609590544139,0.143,30293.0,30271.0,1.32107158]
[1609590544330,0.143,30293.0,30292.0,0.18043158]
[1609590544532,0.143,30293.0,30292.0,1.18043158]
[1609590544731,0.143,30293.0,30292.0,1.0]
[1609590544932,0.14340342,30293.0,30292.0,1.0]
[1609590545333,0.143,30293.0,30292.0,1.0]
[1609590545733,0.14340335,30293.0,30292.0,1.0]
[1609590545947,0.58614319,30316.0,30292.0,1.0]
[1609590546333,0.18043158,30307.0,30301.0,0.18043158]
[1609590546533,0.18043158,30307.0,30302.0,1.0]
[1609590546933,0.00040321,30306.0,30302.0,1.0]
[1609590547132,0.15529321,30306.0,30302.0,1.0]
[1609590547733,0.00040321,30305.0,30303.0,1.0]
[1609590547935,0.00040321,30305.0,30304.0,1.0]
[1609590548336,0.00040321,30305.0,30304.0,2.0]
[1609590549936,0.00040321,30305.0,30304.0,1.0]
[1609590550336,0.00040321,30305.0,30295.0,0.18043158]
[1609590550535,0.00040321,30305.0,30304.0,1.0]
[1609590552338,0.00040321,30305.0,30297.0,5.0]
[1609590552339,0.00040321,30305.0,30283.0,0.18043158]
[1609590552538,5.36390321,30305.0,30276.0,1.0]
[1609590552739,5.36390321,30305.0,30259.0,0.13754]
[1609590552939,0.00040345,30304.0,30271.0,1.0]
[1609590553140,0.00040345,30304.0,30272.0,1.0]
[1609590553543,0.00040345,30304.0,30272.0,1.15199]
[1609590554344,0.00040345,30304.0,30277.0,0.18043158]
[1609590554745,0.00040345,30304.0,30278.0,1.0]
[1609590555446,0.01767614,30304.0,30278.0,1.0]
[1609590555848,0.01767614,30304.0,30277.0,0.18043158]
[1609590556448,0.18043158,30278.0,30277.0,0.18043158]
[1609590556648,0.18043158,30278.0,30277.0,1.18043158]
[1609590557550,0.14952,30295.0,30277.0,1.18043158]
[1609590558153,0.0004034,30294.0,30277.0,1.18043158]
[1609590558357,0.0004034,30294.0,30293.0,0.18043158]
[1609590558554,0.0004034,30294.0,30283.0,0.12902]
[1609590558752,0.0004034,30294.0,30293.0,1.0]
[1609590559970,0.0004034,30294.0,30293.0,2.0]
[1609590560557,0.00040329,30305.0,30293.0,2.0]
[1609590560755,0.15489,30306.0,30293.0,7.0]
[1609590560954,0.00040326,30304.0,30297.0,0.18043158]
[1609590561156,0.14281326,30304.0,30298.0,1.0]
[1609590561354,0.14241,30304.0,30298.0,1.0]
[1609590561561,0.00040328,30303.0,30298.0,1.0]
[1609590562658,0.00040328,30303.0,30302.0,1.0]
[1609590562858,0.18083486,30303.0,30302.0,1.18043158]
[1609590563059,0.18083486,30303.0,30302.0,2.18043158]
[1609590563458,0.18083486,30303.0,30302.0,2.0]
[1609590564158,0.18043158,30303.0,30302.0,2.0]
[1609590565260,0.18083487,30303.0,30302.0,1.0]
[1609590566061,0.18043158,30303.0,30302.0,1.0]
[1609590566662,0.18083488,30303.0,30297.0,1.0]
[1609590566863,0.18043158,30298.0,30297.0,1.0]
[1609590567465,0.18083494,30298.0,30297.0,1.0]
[1609590568264,0.18043158,30298.0,30297.0,1.0]
[1609590568665,0.18043158,30298.0,30286.0,1.0]
[1609590568866,0.18043158,30287.0,30286.0,1.0]
[1609590569266,0.18043158,30287.0,30286.0,1.00041367]
[1609590569465,0.18043158,30287.0,30286.0,0.00041367]
[1609590570066,0.18043158,30287.0,30285.0,0.00041367]
[1609590570267,0.18043158,30287.0,30286.0,0.00041369]
[1609590570668,0.18043158,30287.0,30286.0,1.00041369]
[1609590570868,0.18043158,30287.0,30286.0,1.0]
[1609590571068,0.18043158,30287.0,30286.0,1.00041369]
[1609590571871,0.18043158,30287.0,30286.0,2.00041369]
[1609590572970,0.18043158,30287.0,30286.0,2.18084527]
[1609590573170,0.18043158,30287.0,30286.0,2.00041369]
[1609590573975,0.15432,30297.0,30286.0,2.00041369]
[1609590574173,4.98581,30304.0,30286.0,2.00041369]
[1609590574374,0.14241,30304.0,30287.0,0.00041369]
[1609590574575,0.00040339,30303.0,30287.0,0.00041369]
[1609590574777,0.12317339,30303.0,30291.0,5.0]
[1609590574976,0.12317339,30303.0,30297.0,0.18043158]
[1609590575177,0.12277,30303.0,30298.0,1.0]
[1609590575376,0.12277,30303.0,30298.0,1.0004136]
[1609590575578,0.12277,30303.0,30299.0,0.0004136]
[1609590575777,0.12075903,30303.0,30299.0,0.0004136]
[1609590576778,0.12075903,30303.0,30298.0,0.0004136]
[1609590576978,0.12075903,30303.0,30300.0,0.0004136]
[1609590577178,0.12075903,30303.0,30299.0,0.0004136]
[1609590577579,0.12075903,30303.0,30301.0,0.0004136]
[1609590577782,0.12075903,30303.0,30300.0,0.00041358]
[1609590578004,0.12075903,30303.0,30302.0,0.00041358]
[1609590578280,0.12075903,30303.0,30301.0,0.0004136]
[1609590578480,0.12075903,30303.0,30302.0,0.00041358]
[1609590578879,0.12075903,30303.0,30299.0,0.00041358]
[1609590579181,0.18043158,30300.0,30298.0,1.0]
[1609590579381,0.18043158,30300.0,30299.0,0.00041358]
[1609590580683,0.18043158,30300.0,30298.0,1.0]
[1609590580882,0.18043158,30300.0,30299.0,0.00041362]
[1609590582383,0.18083497,30300.0,30299.0,0.00041362]
[1609590583083,0.18083497,30300.0,30285.0,0.0004137]
[1609590583283,0.18083497,30300.0,30299.0,0.0004137]
[1609590583583,0.18043158,30300.0,30286.0,0.0004137]
[1609590583883,0.18083503,30300.0,30285.0,1.0]
[1609590584083,0.00040345,30299.0,30287.0,0.00041373]
[1609590584485,0.00040345,30299.0,30286.0,0.00041373]
[1609590584684,4.7122,30295.0,30288.0,0.00041376]
[1609590584885,4.85263,30295.0,30287.0,0.00041376]
[1609590585085,0.18043158,30288.0,30287.0,0.00041376]
[1609590585285,0.18043158,30288.0,30282.0,0.00041376]
[1609590585486,0.18043158,30288.0,30287.0,0.00041376]
[1609590585686,0.18043158,30288.0,30283.0,0.00041378]
[1609590586088,0.18043158,30288.0,30281.0,1.00041378]
[1609590586288,0.18043158,30288.0,30284.0,0.00041378]
[1609590586488,0.18043158,30288.0,30282.0,0.00041378]
[1609590586689,0.18043158,30288.0,30287.0,1.0]
[1609590587289,0.18043158,30288.0,30287.0,1.0004138]
[1609590588789,0.18043158,30288.0,30287.0,0.0004138]
[1609590589191,0.18043158,30288.0,30281.0,0.0004138]
[1609590589591,0.18043158,30288.0,30287.0,0.0004138]
[1609590589791,0.18043158,30288.0,30282.0,0.0004138]
[1609590590192,0.17841954,30288.0,30281.0,0.00041377]
[1609590590596,0.17841954,30288.0,30283.0,0.00041377]
[1609590590794,0.17841954,30288.0,30286.0,1.0]
[1609590590996,0.17841954,30288.0,30287.0,0.00041377]
[1609590593197,0.17841954,30288.0,30281.0,0.00041377]
[1609590593397,0.17841954,30288.0,30287.0,0.00041377]
[1609590593796,0.17841954,30288.0,30282.0,0.00041377]
[1609590593997,0.17841954,30288.0,30287.0,0.00041377]
[1609590594197,0.17841954,30288.0,30283.0,0.00041377]
[1609590594602,0.17841954,30288.0,30281.0,0.00041377]
[1609590594798,0.17841954,30288.0,30287.0,1.0]
[1609590595399,0.17841954,30288.0,30287.0,1.00041375]
[1609590597601,0.17841954,30288.0,30287.0,2.00041375]
[1609590598704,0.17841954,30288.0,30287.0,1.00041375]
[1609590599103,0.17841954,30288.0,30287.0,1.18084533]
[1609590599302,0.17841954,30288.0,30287.0,1.00041375]
[1609590599705,0.17841954,30288.0,30287.0,0.00041375]
[1609590600104,0.17841954,30288.0,30282.0,0.00041375]
[1609590600305,0.17841954,30288.0,30287.0,0.00041375]
[1609590600707,0.17841954,30288.0,30285.0,1.0]
[1609590600906,0.17841954,30288.0,30287.0,0.00041375]
[1609590601106,0.14043,30295.0,30287.0,0.00041375]
[1609590601314,1.0,30301.0,30287.0,0.00041375]
[1609590601907,0.00040342,30300.0,30287.0,0.00041375]
[1609590603112,0.18043158,30294.0,30291.0,0.18043158]